[Event "Championnat d'Europe Rapide"]
[Date "2024.12.08"]
[White "Muradli, Mahammad"]
[Black "Navara, David"]
[WhiteElo "2588"]
[BlackElo "2665"]
[Round "7.12"]
[Result "1/2-1/2"]
[TimeControl "900+10"]

1. Nf3 {[%emt 00:01:48] [%clk 00:13:29]} Nf6 {[%emt 00:00:29] [%clk 00:14:55]}
2. c4 {[%emt 00:00:01] [%clk 00:13:37]} e6 {[%emt 00:00:03] [%clk 00:15:03]} 3.
g3 {[%emt 00:00:01] [%clk 00:13:45]} d5 {[%emt 00:00:05] [%clk 00:15:08]} 4. Bg2
{[%emt 00:00:05] [%clk 00:13:50]} d4 {[%emt 00:00:06] [%clk 00:15:13]} 5. b4
{[%emt 00:01:34] [%clk 00:12:26]} c5 {[%emt 00:01:26] [%clk 00:13:57]} 6. Bb2
{[%emt 00:00:34] [%clk 00:12:02]} Be7 {[%emt 00:00:04] [%clk 00:14:02]} 7. O-O
{[%emt 00:00:28] [%clk 00:11:44]} O-O {[%emt 00:00:04] [%clk 00:14:08]} 8. d3
{[%emt 00:00:02] [%clk 00:11:53]} Re8 {[%emt 00:00:46] [%clk 00:13:32]} 9. Nbd2
{[%emt 00:00:23] [%clk 00:11:40]} Bf8 {[%emt 00:00:53] [%clk 00:12:48]} 10. bxc5
{[%emt 00:02:46] [%clk 00:09:05]} e5 {[%emt 00:00:35] [%clk 00:12:23]} 11. Nb3
{[%emt 00:00:02] [%clk 00:09:14]} Nc6 {[%emt 00:00:25] [%clk 00:12:07]} 12. e3
{[%emt 00:00:42] [%clk 00:08:41]} dxe3 {[%emt 00:00:30] [%clk 00:11:48]} 13.
fxe3 {[%emt 00:00:02] [%clk 00:08:50]} e4 {[%emt 00:00:21] [%clk 00:11:36]} 14.
Bxf6 {[%emt 00:02:23] [%clk 00:06:37]} Qxf6 {[%emt 00:00:19] [%clk 00:11:27]}
15. Nfd4 {[%emt 00:00:01] [%clk 00:06:46]} Qh6 {[%emt 00:01:04] [%clk 00:10:32]}
16. Nxc6 {[%emt 00:00:03] [%clk 00:06:54]} bxc6 {[%emt 00:01:26] [%clk
00:09:16]} 17. Bxe4 {[%emt 00:00:20] [%clk 00:06:45]} Bh3 {[%emt 00:00:17] [%clk
00:09:08]} 18. Qf3 {[%emt 00:01:05] [%clk 00:05:49]} Bxf1 {[%emt 00:01:08] [%clk
00:08:10]} 19. Rxf1 {[%emt 00:00:02] [%clk 00:05:57]} Rad8 {[%emt 00:01:59]
[%clk 00:06:21]} 20. Qxf7+ {[%emt 00:02:56] [%clk 00:03:12]} Kh8 {[%emt
00:00:01] [%clk 00:06:30]} 21. Rf4 {[%emt 00:00:24] [%clk 00:02:57]} Be7 {[%emt
00:00:33] [%clk 00:06:08]} 22. Kg2 {[%emt 00:00:46] [%clk 00:02:21]} Bg5 {[%emt
00:00:51] [%clk 00:05:27]} 23. Rf5 {[%emt 00:00:02] [%clk 00:02:29]} g6 {[%emt
00:00:12] [%clk 00:05:25]} 24. Rf1 {[%emt 00:00:41] [%clk 00:01:58]} Rf8 {[%emt
00:00:24] [%clk 00:05:11]} 25. Qc7 {[%emt 00:01:01] [%clk 00:01:07]} Rxf1 {[%emt
00:00:51] [%clk 00:04:30]} 26. Kxf1 {[%emt 00:00:01] [%clk 00:01:16]} Rf8+
{[%emt 00:00:06] [%clk 00:04:34]} 27. Kg2 {[%emt 00:00:27] [%clk 00:00:59]} Qh5
{[%emt 00:00:58] [%clk 00:03:46]} 28. Qe5+ {[%emt 00:00:20] [%clk 00:00:49]} Kg8
{[%emt 00:00:01] [%clk 00:03:55]} 29. Qe6+ {[%emt 00:00:45] [%clk 00:00:14]} Kg7
{[%emt 00:00:03] [%clk 00:04:01]} 30. Qe5+ {[%emt 00:00:03] [%clk 00:00:22]} Kh6
{[%emt 00:00:10] [%clk 00:04:00]} 31. h4 {[%emt 00:00:20] [%clk 00:00:13]} Qe2+
{[%emt 00:00:22] [%clk 00:03:48]} 32. Kh3 {[%emt 00:00:01] [%clk 00:00:22]} Bxe3
{[%emt 00:00:37] [%clk 00:03:21]} 33. Nd4 {[%emt 00:00:13] [%clk 00:00:19]} Bxd4
{[%emt 00:01:00] [%clk 00:02:31]} 34. Qxd4 {[%emt 00:00:01] [%clk 00:00:28]} Rf2
{[%emt 00:00:01] [%clk 00:02:39]} 35. Bg2 {[%emt 00:00:01] [%clk 00:00:37]} Rxg2
{[%emt 00:02:23] [%clk 00:00:27]} 36. Qf4+ {[%emt 00:00:01] [%clk 00:00:45]} Kg7
{[%emt 00:00:01] [%clk 00:00:36]} 37. Qc7+ {[%emt 00:00:01] [%clk 00:00:53]} Kg8
{[%emt 00:00:13] [%clk 00:00:33]} 38. Qc8+ {[%emt 00:00:16] [%clk 00:00:47]}
1/2-1/2

[Site "Europe Echecs"]

[Event "Championnat d'Europe Rapide"]
[Date "2024.12.08"]
[White "Peyrer, Konstantin"]
[Black "Santos Latasa, Jaime"]
[WhiteElo "2440"]
[BlackElo "2628"]
[Round "7.13"]
[Result "1/2-1/2"]
[TimeControl "900+10"]

1. d4 {[%emt 00:00:04] [%clk 00:15:17]} Nf6 {[%emt 00:00:01] [%clk 00:15:19]} 2.
c4 {[%emt 00:00:02] [%clk 00:15:25]} e6 {[%emt 00:00:01] [%clk 00:15:27]} 3. Nf3
{[%emt 00:00:02] [%clk 00:15:33]} d5 {[%emt 00:00:01] [%clk 00:15:36]} 4. g3
{[%emt 00:00:01] [%clk 00:15:41]} Be7 {[%emt 00:00:03] [%clk 00:15:44]} 5. Bg2
{[%emt 00:00:01] [%clk 00:15:49]} O-O {[%emt 00:00:03] [%clk 00:15:51]} 6. O-O
{[%emt 00:00:08] [%clk 00:15:51]} a5 {[%emt 00:00:02] [%clk 00:16:01]} 7. Nc3
{[%emt 00:00:20] [%clk 00:15:41]} c6 {[%emt 00:01:16] [%clk 00:14:54]} 8. b3
{[%emt 00:00:15] [%clk 00:15:35]} Nbd7 {[%emt 00:00:11] [%clk 00:14:54]} 9. Qc2
{[%emt 00:01:02] [%clk 00:14:42]} b6 {[%emt 00:00:37] [%clk 00:14:28]} 10. Rd1
{[%emt 00:00:37] [%clk 00:14:15]} Ba6 {[%emt 00:00:48] [%clk 00:13:50]} 11. Nd2
{[%emt 00:04:41] [%clk 00:09:44]} Rc8 {[%emt 00:06:48] [%clk 00:07:12]} 12. Bb2
{[%emt 00:03:08] [%clk 00:06:46]} c5 {[%emt 00:01:24] [%clk 00:05:59]} 13. dxc5
{[%emt 00:00:03] [%clk 00:06:52]} Bxc5 {[%emt 00:00:20] [%clk 00:05:49]} 14. e3
{[%emt 00:00:13] [%clk 00:06:49]} dxc4 {[%emt 00:01:17] [%clk 00:04:43]} 15.
Nxc4 {[%emt 00:00:31] [%clk 00:06:27]} Qe7 {[%emt 00:00:12] [%clk 00:04:41]} 16.
a4 {[%emt 00:01:26] [%clk 00:05:11]} Bxc4 {[%emt 00:01:02] [%clk 00:03:49]} 17.
bxc4 {[%clk 00:05:20]} Rfd8 {[%emt 00:00:06] [%clk 00:03:53]} 18. Nb5 {[%emt
00:00:12] [%clk 00:05:18]} Nf8 {[%emt 00:00:11] [%clk 00:03:52]} 19. Nd4 {[%emt
00:02:00] [%clk 00:03:28]} Rd6 {[%emt 00:00:31] [%clk 00:03:32]} 20. Nb3 {[%emt
00:00:21] [%clk 00:03:16]} Rxd1+ {[%emt 00:00:20] [%clk 00:03:22]} 21. Rxd1
{[%emt 00:00:02] [%clk 00:03:25]} Bb4 {[%emt 00:00:02] [%clk 00:03:30]} 22. Nd4
{[%emt 00:00:34] [%clk 00:03:00]} Qc5 {[%emt 00:00:32] [%clk 00:03:08]} 23. Bf1
{[%emt 00:00:01] [%clk 00:03:09]} Ng6 {[%emt 00:00:34] [%clk 00:02:44]} 24. Nb5
{[%emt 00:00:23] [%clk 00:02:55]} Ne5 {[%emt 00:00:18] [%clk 00:02:37]} 25. Be2
{[%emt 00:00:51] [%clk 00:02:14]} Ned7 {[%emt 00:00:27] [%clk 00:02:21]} 26. Nd6
{[%emt 00:00:26] [%clk 00:01:57]} Rf8 {[%emt 00:00:30] [%clk 00:02:02]} 27. Ne4
{[%emt 00:00:41] [%clk 00:01:25]} Qe7 {[%emt 00:00:32] [%clk 00:01:39]} 28. Bd4
{[%emt 00:00:42] [%clk 00:00:54]} Nxe4 {[%emt 00:00:08] [%clk 00:01:42]} 29.
Qxe4 {[%emt 00:00:01] [%clk 00:01:03]} Bc5 {[%emt 00:00:45] [%clk 00:01:07]} 30.
Bc3 {[%emt 00:00:04] [%clk 00:01:08]} Nf6 {[%emt 00:00:08] [%clk 00:01:09]} 31.
Qc6 {[%emt 00:00:07] [%clk 00:01:12]} h6 {[%emt 00:00:15] [%clk 00:01:04]} 32.
Kg2 {[%emt 00:00:07] [%clk 00:01:14]} Re8 {[%emt 00:00:22] [%clk 00:00:51]} 33.
Bxf6 {[%emt 00:00:05] [%clk 00:01:20]} gxf6 {[%emt 00:00:02] [%clk 00:00:59]}
34. Rd7 {[%emt 00:00:01] [%clk 00:01:29]} Qf8 {[%emt 00:00:03] [%clk 00:01:06]}
35. Rc7 {[%emt 00:00:08] [%clk 00:01:31]} Bd6 {[%emt 00:00:35] [%clk 00:00:41]}
36. Ra7 {[%emt 00:00:02] [%clk 00:01:39]} Rc8 {[%emt 00:00:04] [%clk 00:00:48]}
37. Qd7 {[%emt 00:00:47] [%clk 00:01:01]} Ra8 {[%emt 00:00:21] [%clk 00:00:38]}
38. Rxa8 {[%emt 00:00:11] [%clk 00:00:59]} Qxa8+ {[%emt 00:00:02] [%clk
00:00:46]} 39. Bf3 {[%emt 00:00:01] [%clk 00:01:08]} Qf8 {[%emt 00:00:02] [%clk
00:00:55]} 40. Bc6 {[%emt 00:00:09] [%clk 00:01:08]} 1/2-1/2

[Site "Europe Echecs"]

[Event "Championnat d'Europe Rapide"]
[Date "2024.12.08"]
[White "Ghimpu, Samuel-Timotei"]
[Black "Sarana, Alexey"]
[WhiteElo "2475"]
[BlackElo "2674"]
[Round "7.14"]
[Result "0-1"]
[TimeControl "900+10"]

1. e4 {[%emt 00:00:32] [%clk 00:14:46]} c5 {[%emt 00:00:02] [%clk 00:15:19]} 2.
Nf3 {[%emt 00:00:03] [%clk 00:14:52]} d6 {[%emt 00:00:02] [%clk 00:15:28]} 3. d4
{[%emt 00:00:35] [%clk 00:14:27]} Nf6 {[%emt 00:00:02] [%clk 00:15:36]} 4. Nc3
{[%emt 00:00:42] [%clk 00:13:55]} cxd4 {[%emt 00:00:02] [%clk 00:15:45]} 5. Nxd4
{[%emt 00:00:01] [%clk 00:14:03]} a6 {[%emt 00:00:02] [%clk 00:15:53]} 6. a4
{[%emt 00:01:06] [%clk 00:13:06]} e5 {[%emt 00:00:05] [%clk 00:15:59]} 7. Nf3
{[%emt 00:00:03] [%clk 00:13:13]} Nc6 {[%emt 00:00:10] [%clk 00:16:00]} 8. Bg5
{[%emt 00:00:38] [%clk 00:12:45]} Be6 {[%emt 00:00:02] [%clk 00:16:08]} 9. Nd2
{[%emt 00:00:55] [%clk 00:11:59]} Rc8 {[%emt 00:03:30] [%clk 00:12:49]} 10. Nd5
{[%emt 00:01:48] [%clk 00:10:20]} Bxd5 {[%emt 00:01:19] [%clk 00:11:40]} 11.
exd5 {[%emt 00:00:02] [%clk 00:10:28]} Ne7 {[%emt 00:02:38] [%clk 00:09:12]} 12.
Bc4 {[%emt 00:04:17] [%clk 00:06:21]} Nd7 {[%emt 00:01:25] [%clk 00:07:57]} 13.
O-O {[%emt 00:01:54] [%clk 00:04:37]} h6 {[%emt 00:00:02] [%clk 00:08:06]} 14.
Bxe7 {[%emt 00:01:20] [%clk 00:03:27]} Bxe7 {[%emt 00:00:02] [%clk 00:08:14]}
15. a5 {[%emt 00:00:32] [%clk 00:03:05]} O-O {[%emt 00:00:05] [%clk 00:08:18]}
16. Be2 {[%emt 00:00:03] [%clk 00:03:12]} f5 {[%emt 00:00:08] [%clk 00:08:21]}
17. Nc4 {[%emt 00:00:33] [%clk 00:02:48]} e4 {[%emt 00:00:28] [%clk 00:08:03]}
18. f4 {[%emt 00:01:27] [%clk 00:01:30]} exf3 {[%emt 00:00:21] [%clk 00:07:53]}
19. Rxf3 {[%clk 00:01:39]} Ne5 {[%emt 00:00:03] [%clk 00:08:00]} 20. Rf4 {[%emt
00:00:57] [%clk 00:00:53]} Bg5 {[%emt 00:00:42] [%clk 00:07:28]} 21. Rd4 {[%emt
00:00:01] [%clk 00:01:01]} Qf6 {[%emt 00:02:33] [%clk 00:05:06]} 22. c3 {[%emt
00:00:21] [%clk 00:00:49]} Nxc4 {[%emt 00:00:51] [%clk 00:04:25]} 23. Rxc4
{[%emt 00:00:01] [%clk 00:00:58]} Be3+ {[%emt 00:00:02] [%clk 00:04:33]} 24. Kh1
{[%emt 00:00:08] [%clk 00:01:00]} Rxc4 {[%emt 00:00:02] [%clk 00:04:42]} 25.
Bxc4 {[%emt 00:00:01] [%clk 00:01:08]} Qh4 {[%emt 00:00:01] [%clk 00:04:51]} 26.
Qf3 {[%emt 00:01:02] [%clk 00:00:16]} Qxc4 {[%emt 00:00:52] [%clk 00:04:09]} 27.
Qxe3 {[%clk 00:00:25]} Qxd5 {[%emt 00:00:01] [%clk 00:04:18]} 28. Qe2 {[%emt
00:00:02] [%clk 00:00:33]} Qe4 {[%emt 00:01:10] [%clk 00:03:18]} 29. Qxe4 {[%emt
00:00:29] [%clk 00:00:15]} fxe4 {[%emt 00:00:01] [%clk 00:03:27]} 30. Kg1 {[%clk
00:00:24]} Rf5 {[%emt 00:00:42] [%clk 00:02:55]} 31. Re1 {[%emt 00:00:05] [%clk
00:00:28]} d5 {[%emt 00:00:22] [%clk 00:02:43]} 32. c4 {[%emt 00:00:14] [%clk
00:00:24]} dxc4 {[%emt 00:00:05] [%clk 00:02:48]} 33. Rxe4 {[%emt 00:00:01]
[%clk 00:00:33]} Rxa5 {[%emt 00:00:16] [%clk 00:02:43]} 34. Rxc4 {[%emt
00:00:05] [%clk 00:00:38]} Rb5 {[%emt 00:00:10] [%clk 00:02:42]} 35. b4 {[%emt
00:00:08] [%clk 00:00:40]} Kf7 {[%emt 00:00:01] [%clk 00:02:51]} 36. Kf2 {[%emt
00:00:04] [%clk 00:00:46]} Ke6 {[%emt 00:00:01] [%clk 00:03:00]} 37. Ke3 {[%emt
00:00:06] [%clk 00:00:51]} Kd6 {[%emt 00:00:09] [%clk 00:03:01]} 38. h4 {[%emt
00:00:16] [%clk 00:00:44]} Re5+ {[%emt 00:00:22] [%clk 00:02:49]} 39. Kd3 {[%emt
00:00:05] [%clk 00:00:49]} g5 {[%emt 00:00:32] [%clk 00:02:27]} 40. hxg5 {[%emt
00:00:09] [%clk 00:00:50]} hxg5 {[%emt 00:00:01] [%clk 00:02:35]} 41. Rc8 {[%emt
00:00:23] [%clk 00:00:38]} Kd7 {[%emt 00:00:08] [%clk 00:02:37]} 42. Rc4 {[%emt
00:00:28] [%clk 00:00:21]} Rb5 {[%emt 00:00:11] [%clk 00:02:35]} 43. Kc3 {[%emt
00:00:15] [%clk 00:00:16]} Rf5 {[%emt 00:00:04] [%clk 00:02:42]} 44. Kd3 {[%emt
00:00:07] [%clk 00:00:19]} Kd6 {[%emt 00:00:11] [%clk 00:02:41]} 45. Rc8 {[%emt
00:00:15] [%clk 00:00:14]} Rf4 {[%emt 00:00:03] [%clk 00:02:49]} 46. Rc5 {[%emt
00:00:08] [%clk 00:00:16]} Rg4 {[%emt 00:00:07] [%clk 00:02:51]} 47. Ra5 {[%emt
00:00:03] [%clk 00:00:23]} Rxg2 {[%emt 00:00:08] [%clk 00:02:54]} 48. b5 {[%clk
00:00:32]} axb5 {[%emt 00:00:02] [%clk 00:03:02]} 49. Rxb5 {[%emt 00:00:01]
[%clk 00:00:41]} Kc6 {[%clk 00:03:12]} 50. Rf5 {[%emt 00:00:02] [%clk 00:00:49]}
b5 {[%emt 00:00:02] [%clk 00:03:20]} 51. Kd4 {[%emt 00:00:03] [%clk 00:00:57]}
Kb6 {[%emt 00:00:03] [%clk 00:03:26]} 52. Rf1 {[%emt 00:00:17] [%clk 00:00:50]}
Rg3 {[%emt 00:00:17] [%clk 00:03:19]} 53. Rb1 {[%emt 00:00:39] [%clk 00:00:21]}
g4 {[%emt 00:00:02] [%clk 00:03:27]} 54. Ke4 {[%emt 00:00:02] [%clk 00:00:29]}
Kc5 {[%emt 00:00:03] [%clk 00:03:33]} 55. Kf4 {[%emt 00:00:03] [%clk 00:00:37]}
Rg2 {[%emt 00:00:02] [%clk 00:03:41]} 56. Rc1+ {[%emt 00:00:05] [%clk 00:00:43]}
Kb4 {[%clk 00:03:50]} 57. Rb1+ {[%clk 00:00:52]} Kc4 {[%clk 00:03:59]} 0-1

[Site "Europe Echecs"]

[Event "Championnat d'Europe Rapide"]
[Date "2024.12.08"]
[White "Ragger, Markus"]
[Black "Beerdsen, Thomas"]
[WhiteElo "2577"]
[BlackElo "2502"]
[Round "7.15"]
[Result "0-1"]
[TimeControl "900+10"]

1. d4 {[%emt 00:00:02] [%clk 00:15:18]} d5 {[%emt 00:01:18] [%clk 00:14:02]} 2.
c4 {[%emt 00:00:02] [%clk 00:15:27]} Nc6 {[%emt 00:00:01] [%clk 00:14:10]} 3.
Nc3 {[%emt 00:00:06] [%clk 00:15:31]} Nf6 {[%emt 00:00:02] [%clk 00:14:18]} 4.
Nf3 {[%emt 00:00:02] [%clk 00:15:38]} dxc4 {[%emt 00:00:07] [%clk 00:14:21]} 5.
e4 {[%emt 00:00:10] [%clk 00:15:39]} Bg4 {[%emt 00:00:27] [%clk 00:14:04]} 6.
Be3 {[%emt 00:00:04] [%clk 00:15:46]} e6 {[%emt 00:00:05] [%clk 00:14:09]} 7.
Bxc4 {[%emt 00:00:08] [%clk 00:15:47]} Bb4 {[%emt 00:00:02] [%clk 00:14:17]} 8.
Qd3 {[%emt 00:00:45] [%clk 00:15:12]} O-O {[%emt 00:00:17] [%clk 00:14:10]} 9.
O-O {[%emt 00:02:12] [%clk 00:13:10]} Bxf3 {[%emt 00:00:51] [%clk 00:13:29]} 10.
gxf3 {[%emt 00:00:01] [%clk 00:13:19]} Nh5 {[%emt 00:00:22] [%clk 00:13:17]} 11.
e5 {[%emt 00:00:39] [%clk 00:12:50]} Ne7 {[%emt 00:00:40] [%clk 00:12:46]} 12.
Ne4 {[%emt 00:00:43] [%clk 00:12:17]} Nd5 {[%emt 00:02:53] [%clk 00:10:03]} 13.
Ng3 {[%emt 00:00:53] [%clk 00:11:34]} Nhf4 {[%emt 00:02:27] [%clk 00:07:46]} 14.
Qe4 {[%emt 00:00:36] [%clk 00:11:07]} f5 {[%emt 00:00:05] [%clk 00:07:51]} 15.
exf6 {[%emt 00:01:18] [%clk 00:10:00]} Qxf6 {[%emt 00:00:03] [%clk 00:07:58]}
16. Kh1 {[%emt 00:01:12] [%clk 00:08:58]} Bd6 {[%emt 00:00:36] [%clk 00:07:31]}
17. Rae1 {[%emt 00:00:15] [%clk 00:08:53]} Rae8 {[%emt 00:00:16] [%clk
00:07:26]} 18. Bc1 {[%emt 00:00:10] [%clk 00:08:53]} c6 {[%emt 00:00:43] [%clk
00:06:52]} 19. Qc2 {[%emt 00:05:50] [%clk 00:03:14]} Qh4 {[%emt 00:00:36] [%clk
00:06:26]} 20. Bxd5 {[%emt 00:00:45] [%clk 00:02:39]} cxd5 {[%emt 00:00:23]
[%clk 00:06:13]} 21. Bxf4 {[%emt 00:00:14] [%clk 00:02:35]} Rxf4 {[%emt
00:00:16] [%clk 00:06:06]} 22. Rg1 {[%emt 00:00:03] [%clk 00:02:43]} Rxf3 {[%emt
00:01:04] [%clk 00:05:11]} 23. Rg2 {[%emt 00:00:02] [%clk 00:02:52]} Bxg3 {[%emt
00:01:07] [%clk 00:04:13]} 24. Qa4 {[%emt 00:01:01] [%clk 00:02:02]} Ref8 {[%emt
00:00:28] [%clk 00:03:55]} 25. fxg3 {[%emt 00:00:07] [%clk 00:02:05]} Rf1+
{[%emt 00:00:40] [%clk 00:03:25]} 26. Rg1 {[%emt 00:00:01] [%clk 00:02:14]}
Rxg1+ {[%emt 00:00:04] [%clk 00:03:31]} 27. Kxg1 {[%emt 00:00:02] [%clk
00:02:22]} Qf6 {[%emt 00:00:42]} 28. Qc2 {[%clk 00:01:49]} Qxd4+ {[%emt
00:00:04] [%clk 00:03:46]} 29. Kg2 {[%emt 00:00:01] [%clk 00:01:58]} Qf6 {[%emt
00:00:21] [%clk 00:03:35]} 30. Qe2 {[%emt 00:00:07] [%clk 00:02:02]} Re8 {[%emt
00:00:07] [%clk 00:03:37]} 31. Rf1 {[%emt 00:00:12] [%clk 00:02:01]} Qg6 {[%emt
00:00:14] [%clk 00:03:32]} 32. Qe5 {[%emt 00:01:22] [%clk 00:00:49]} Qc2+ {[%emt
00:00:16] [%clk 00:03:27]} 33. Rf2 {[%emt 00:00:06] [%clk 00:00:53]} Qc6 {[%emt
00:00:02] [%clk 00:03:34]} 34. h4 {[%emt 00:00:22] [%clk 00:00:41]} h6 {[%emt
00:00:03] [%clk 00:03:42]} 35. Kh2 {[%emt 00:00:18] [%clk 00:00:33]} Rd8 {[%emt
00:00:07] [%clk 00:03:45]} 36. Rf4 {[%emt 00:00:15] [%clk 00:00:28]} Qd6 {[%emt
00:00:14] [%clk 00:03:40]} 37. Qh5 {[%emt 00:00:03] [%clk 00:00:35]} Rf8 {[%emt
00:00:49] [%clk 00:03:02]} 38. Qf3 {[%emt 00:00:21] [%clk 00:00:24]} Rxf4 {[%emt
00:00:07] [%clk 00:03:05]} 39. gxf4 {[%clk 00:00:34]} g5 {[%emt 00:00:04] [%clk
00:03:11]} 40. hxg5 {[%emt 00:00:22] [%clk 00:00:23]} hxg5 {[%emt 00:00:01]
[%clk 00:03:19]} 41. Kg2 {[%emt 00:00:02] [%clk 00:00:31]} Qxf4 {[%emt 00:00:02]
[%clk 00:03:27]} 42. Qc3 {[%clk 00:00:41]} Qe4+ {[%emt 00:00:38] [%clk
00:02:59]} 43. Kh2 {[%emt 00:00:06] [%clk 00:00:45]} Qc4 {[%emt 00:00:04] [%clk
00:03:05]} 44. Qa3 {[%emt 00:00:08] [%clk 00:00:46]} Qc7+ {[%emt 00:00:19] [%clk
00:02:56]} 45. Kg2 {[%emt 00:00:02] [%clk 00:00:54]} a6 {[%emt 00:00:06] [%clk
00:03:00]} 46. Qe3 {[%emt 00:00:05] [%clk 00:00:58]} Qc2+ {[%emt 00:00:06] [%clk
00:03:05]} 47. Kg1 {[%emt 00:00:03] [%clk 00:01:05]} Qf5 {[%emt 00:00:05] [%clk
00:03:09]} 48. Qc3 {[%emt 00:00:05] [%clk 00:01:10]} e5 {[%emt 00:00:15] [%clk
00:03:04]} 49. Qc7 {[%emt 00:00:13] [%clk 00:01:08]} Qb1+ {[%emt 00:00:11] [%clk
00:03:03]} 50. Kh2 {[%emt 00:00:04] [%clk 00:01:14]} Qh7+ {[%emt 00:00:02] [%clk
00:03:10]} 0-1

[Site "Europe Echecs"]

[Event "Championnat d'Europe Rapide"]
[Date "2024.12.08"]
[White "Korobov, Anton"]
[Black "Kalezic, Blazo"]
[WhiteElo "2629"]
[BlackElo "2382"]
[Round "7.16"]
[Result "1-0"]
[TimeControl "900+10"]

1. d4 {[%emt 00:00:01] [%clk 00:15:18]} d5 {[%emt 00:00:03] [%clk 00:15:18]} 2.
c4 {[%emt 00:00:03] [%clk 00:15:25]} c6 {[%emt 00:00:02] [%clk 00:15:26]} 3. Nc3
{[%emt 00:00:03] [%clk 00:15:32]} Nf6 {[%emt 00:00:05] [%clk 00:15:31]} 4. cxd5
{[%emt 00:00:03] [%clk 00:15:40]} cxd5 {[%emt 00:00:01] [%clk 00:15:39]} 5. Bg5
{[%emt 00:00:02] [%clk 00:15:48]} Nc6 {[%emt 00:00:34] [%clk 00:15:15]} 6. Bxf6
{[%emt 00:00:04] [%clk 00:15:55]} gxf6 {[%emt 00:01:17] [%clk 00:14:08]} 7. e3
{[%emt 00:00:03] [%clk 00:16:02]} e6 {[%emt 00:01:27] [%clk 00:12:50]} 8. Bd3
{[%emt 00:00:02] [%clk 00:16:10]} f5 {[%emt 00:00:15]} 9. f4 {[%clk 00:16:13]}
h5 {[%emt 00:00:57] [%clk 00:12:05]} 10. Nf3 {[%emt 00:00:08] [%clk 00:16:16]}
h4 {[%emt 00:00:09] [%clk 00:12:06]} 11. O-O {[%emt 00:00:10] [%clk 00:16:15]}
Bd7 {[%emt 00:00:39] [%clk 00:11:36]} 12. Rc1 {[%emt 00:00:03] [%clk 00:16:24]}
Rc8 {[%emt 00:00:20] [%clk 00:11:26]} 13. a3 {[%emt 00:00:35] [%clk 00:15:59]}
Bd6 {[%emt 00:01:05] [%clk 00:10:30]} 14. Rf2 {[%emt 00:00:53] [%clk 00:15:16]}
Na5 {[%emt 00:01:08] [%clk 00:09:32]} 15. Ne5 {[%emt 00:00:22] [%clk 00:15:04]}
Bxe5 {[%emt 00:00:14] [%clk 00:09:29]} 16. fxe5 {[%emt 00:00:21] [%clk
00:14:52]} a6 {[%emt 00:02:15] [%clk 00:07:25]} 17. Ne2 {[%emt 00:00:57] [%clk
00:14:05]} Bb5 {[%emt 00:01:14] [%clk 00:06:21]} 18. Bxb5+ {[%emt 00:00:22]
[%clk 00:13:52]} axb5 {[%emt 00:00:03] [%clk 00:06:29]} 19. Nf4 {[%emt 00:00:03]
[%clk 00:13:59]} Rc4 {[%emt 00:00:33] [%clk 00:06:05]} 20. b3 {[%emt 00:00:46]
[%clk 00:13:24]} Rc6 {[%emt 00:00:11] [%clk 00:06:03]} 21. Rxc6 {[%emt 00:00:51]
[%clk 00:12:43]} Nxc6 {[%emt 00:00:24] [%clk 00:05:50]} 22. Rc2 {[%emt 00:01:15]
[%clk 00:11:37]} Qa5 {[%emt 00:00:40] [%clk 00:05:20]} 23. Qc1 {[%emt 00:00:03]
[%clk 00:11:45]} b4 {[%emt 00:01:21] [%clk 00:04:09]} 24. a4 {[%emt 00:00:19]
[%clk 00:11:36]} Qa6 {[%emt 00:00:02] [%clk 00:04:17]} 25. Qe1 {[%emt 00:00:49]
[%clk 00:10:57]} Kd7 {[%emt 00:00:28] [%clk 00:03:59]} 26. h3 {[%emt 00:00:42]}
Ke7 {[%clk 00:03:25]} 27. Qd2 {[%emt 00:02:12] [%clk 00:09:06]} Rg8 {[%emt
00:01:11] [%clk 00:02:23]} 28. Nd3 {[%emt 00:00:03] [%clk 00:09:14]} Qb6 {[%emt
00:00:06] [%clk 00:02:26]} 29. Rc5 {[%emt 00:00:04] [%clk 00:09:21]} Rg3 {[%emt
00:00:35] [%clk 00:02:00]} 30. Kh2 {[%emt 00:00:18] [%clk 00:09:13]} f6 {[%emt
00:00:27] [%clk 00:01:44]} 31. exf6+ {[%emt 00:00:35] [%clk 00:08:47]} Kxf6
{[%emt 00:00:04] [%clk 00:01:51]} 32. Nf4 {[%emt 00:00:02] [%clk 00:08:55]} Kf7
{[%emt 00:00:20] [%clk 00:01:40]} 33. Qe2 {[%emt 00:00:40] [%clk 00:08:26]} Rg5
{[%emt 00:00:19] [%clk 00:01:31]} 34. Qf2 {[%emt 00:00:11] [%clk 00:08:25]} Rg3
{[%emt 00:01:15] [%clk 00:00:26]} 35. Ne2 {[%emt 00:00:02] [%clk 00:08:32]} Rg7
{[%emt 00:00:15] [%clk 00:00:21]} 36. Qxh4 {[%emt 00:00:05] [%clk 00:08:37]} Qa6
{[%emt 00:00:06] [%clk 00:00:26]} 37. Nf4 {[%emt 00:00:14] [%clk 00:08:32]} 1-0

[Site "Europe Echecs"]